bitfinex/quotes_BTCUSD_20250403
["timestamp","ask_amount","ask_price","bid_price","bid_amount"]
[1743684753662,0.326113,81995.0,81994.0,0.1167556]
[1743684754304,0.07,81995.0,81994.0,0.1167556]
[1743684754903,0.313917,81995.0,81994.0,0.1167556]
[1743684755100,0.07,81995.0,81994.0,0.3521516]
[1743684755574,9e-07,82002.0,82001.0,0.256093]
[1743684755777,9e-07,82002.0,82001.0,0.3728486]
[1743684755950,0.0100009,82002.0,82001.0,0.3728486]
[1743684756292,0.0100009,82002.0,82001.0,0.3777555]
[1743684756499,9e-07,82002.0,82001.0,0.3777555]
[1743684756896,0.0100009,82002.0,82001.0,0.1338565]
[1743684757087,0.0100009,82002.0,82001.0,0.13629498]
[1743684758731,9e-07,82002.0,82001.0,0.47629498]
[1743684758937,9e-07,82002.0,82001.0,0.48782062]
[1743684759086,9e-07,82002.0,82001.0,0.50236147]
[1743684760168,9e-07,82004.0,82003.0,0.601087]
[1743684760380,9e-07,82004.0,82003.0,0.73338225]
[1743684762282,0.000336,82031.0,82030.0,0.256003]
[1743684762479,0.00047488,82031.0,82030.0,0.9416623]
[1743684762693,0.00047488,82031.0,82030.0,0.95620315]
[1743684763235,0.00047488,82031.0,82030.0,0.96824119]
[1743684764210,8.8e-07,82031.0,82030.0,0.96824119]
[1743684764405,8.8e-07,82031.0,82030.0,0.99324119]
[1743684764969,8.8e-07,82031.0,82030.0,0.78337835]
[1743684765170,8.8e-07,82031.0,82030.0,1.00089835]
[1743684765383,0.000336,82051.0,82030.0,1.00089835]
[1743684765384,2.8e-07,82049.0,82048.0,0.005]
[1743684765580,4.8e-07,82050.0,82049.0,0.27548385]
[1743684765780,4.8e-07,82050.0,82049.0,0.39223945]
[1743684765966,4.8e-07,82051.0,82050.0,0.37172785]
[1743684766163,4.8e-07,82051.0,82050.0,0.48848345]
[1743684766364,4.8e-07,82051.0,82050.0,0.53358345]
[1743684766779,4.8e-07,82051.0,82050.0,0.60398345]
[1743684767944,4.8e-07,82051.0,82050.0,0.57898345]
[1743684768261,4.8e-07,82051.0,82050.0,0.79530345]
[1743684768749,4.8e-07,82051.0,82050.0,0.82411018]
[1743684769938,4.8e-07,82051.0,82050.0,0.79911018]
[1743684770096,4.8e-07,82051.0,82050.0,0.82411018]
[1743684770895,4.8e-07,82051.0,82050.0,0.97411018]
[1743684771802,4.8e-07,82051.0,82050.0,0.98629013]
[1743684772041,0.004,82079.0,82078.0,0.255853]
[1743684772248,0.004,82079.0,82078.0,0.5880834]
[1743684772249,0.01446312,82079.0,82078.0,0.5880834]
[1743684772626,0.00446312,82079.0,82078.0,0.5880834]
[1743684773186,0.01446312,82079.0,82078.0,0.5880834]
[1743684773390,0.01446312,82079.0,82078.0,0.3439334]
[1743684775823,0.01446312,82079.0,82078.0,0.3317504]
[1743684775969,0.01446312,82079.0,82078.0,0.5876034]
[1743684776190,0.01446312,82079.0,82078.0,0.5754204]
[1743684776407,0.01446312,82079.0,82078.0,0.5866834]
[1743684776827,0.01446312,82079.0,82078.0,0.5864834]
[1743684778279,0.01446312,82079.0,82078.0,0.3736034]
[1743684778449,0.01446312,82079.0,82078.0,0.5860434]
[1743684780034,0.00446312,82079.0,82078.0,0.5860434]
[1743684780774,0.01446312,82079.0,82078.0,0.5860434]
[1743684781737,0.00446312,82079.0,82078.0,0.5860434]
[1743684782157,0.00446312,82079.0,82078.0,0.93822523]
[1743684782359,0.00463112,82079.0,82078.0,0.93822523]
[1743684782568,0.00463112,82079.0,82078.0,0.95776608]
[1743684782773,0.00463112,82079.0,82078.0,0.93634523]
[1743684783178,0.00463112,82079.0,82078.0,0.3736034]
[1743684783377,0.01463112,82079.0,82078.0,0.58764914]
[1743684784213,0.01463112,82079.0,82078.0,0.37740914]
[1743684784407,0.01463112,82079.0,82078.0,0.58892914]
[1743684784762,0.01463112,82079.0,82078.0,0.37740914]
[1743684785222,0.01463112,82079.0,82078.0,0.5725004]
[1743684785451,0.27048112,82079.0,82078.0,0.0009948]
[1743684785630,0.27048112,82079.0,82036.0,0.0476]
[1743684785631,0.243682,82074.0,82067.0,0.012185]
[1743684785764,0.243686,82073.0,82069.0,0.243697]
[1743684786055,0.2,82073.0,82069.0,0.243697]
[1743684786297,0.243698,82069.0,82067.0,0.1167556]
[1743684786543,0.09,82069.0,82067.0,0.1167556]
[1743684786794,0.012185,82066.0,82064.0,0.21232]
[1743684787051,0.07,82066.0,82065.0,0.3726496]
[1743684787343,0.07,82066.0,82065.0,0.5849696]
[1743684787561,0.06959332,82066.0,82065.0,0.5849696]
[1743684788069,0.06959332,82066.0,82065.0,0.5847696]
[1743684788779,0.00463112,82079.0,82078.0,0.255853]
[1743684789026,0.03463112,82079.0,82078.0,0.5843686]
[1743684789529,0.00463112,82079.0,82078.0,0.5843686]
[1743684790730,0.00463112,82079.0,82078.0,0.59464735]
[1743684791269,0.00463112,82079.0,82078.0,0.5853574]
[1743684791520,0.00463112,82079.0,82078.0,0.5854774]
[1743684793229,0.00463112,82079.0,82078.0,0.59440781]
[1743684793727,0.00463112,82079.0,82078.0,0.93440781]
[1743684794505,0.00463112,82079.0,82078.0,0.93940781]
[1743684795614,1.2e-07,82085.0,82078.0,0.95394866]
[1743684795804,9.2e-07,82087.0,82086.0,0.595828]
[1743684796009,0.00013976,82087.0,82086.0,0.7125836]
[1743684797151,0.00013976,82087.0,82086.0,0.71638885]
[1743684797397,0.243609,82099.0,82094.0,0.24362]
[1743684797554,0.06,82099.0,82097.0,0.24361]
[1743684797756,0.06,82099.0,82098.0,0.3259956]
[1743684798191,0.06,82099.0,82098.0,0.3381756]
[1743684799394,0.07218,82099.0,82098.0,0.3255556]
[1743684799796,0.07218,82099.0,82098.0,0.2088]
[1743684799996,0.0461,82097.0,82094.0,0.0009951]
[1743684800201,0.1461,82097.0,82096.0,0.01218]
[1743684800402,0.1461,82097.0,82096.0,0.1289356]
[1743684800607,0.1,82097.0,82096.0,0.1289356]
[1743684800954,0.1,82097.0,82096.0,0.1167556]
[1743684801120,0.1,82097.0,82096.0,0.1289356]
[1743684801946,0.1,82097.0,82096.0,0.1167556]
[1743684802365,0.1,82097.0,82096.0,0.1289356]
[1743684802573,0.1,82097.0,82096.0,0.3363756]
[1743684803061,0.09,82097.0,82096.0,0.3363756]
[1743684804714,0.09,82097.0,82096.0,0.5799926]
[1743684804965,0.004,82109.0,82108.0,0.25576]
[1743684805171,0.274,82109.0,82108.0,0.3735006]
[1743684805781,0.014,82109.0,82108.0,0.3735006]
[1743684807330,0.004,82109.0,82108.0,0.3735006]
[1743684807532,1e-06,82109.0,82108.0,0.3735006]
[1743684807734,9e-07,82114.0,82113.0,0.255744]
[1743684807935,0.00013964,82114.0,82113.0,0.3724996]
[1743684808136,0.00013964,82114.0,82113.0,0.38153672]
[1743684808921,0.00013964,82114.0,82113.0,0.72153672]
[1743684809182,6.4e-07,82114.0,82113.0,0.72153672]
[1743684809315,6.4e-07,82114.0,82113.0,0.74107757]
[1743684809534,6.4e-07,82114.0,82113.0,0.73607757]
[1743684809851,6.4e-07,82114.0,82113.0,0.72153672]
[1743684811139,6.4e-07,82114.0,82113.0,0.72534091]
[1743684811546,6.4e-07,82114.0,82113.0,0.73988176]
[1743684811982,6.4e-07,82114.0,82113.0,0.74488176]
[1743684812419,8e-05,82127.0,82126.0,0.595704]
[1743684812420,6.4e-07,82127.0,82126.0,0.595704]
[1743684812619,0.0001679,82134.0,82133.0,0.255682]
[1743684812620,5.4e-07,82134.0,82133.0,0.255682]
[1743684812828,5.4e-07,82139.0,82138.0,0.595666]
[1743684813090,0.00013925,82139.0,82138.0,0.7173541]
[1743684813587,2.5e-07,82139.0,82138.0,0.73689495]
[1743684814785,2.5e-07,82139.0,82138.0,0.74104264]
[1743684814983,2.5e-07,82139.0,82138.0,0.74484683]
[1743684815193,2.5e-07,82139.0,82138.0,0.73030598]
[1743684815394,2.5e-07,82139.0,82138.0,0.94419408]
[1743684816337,4.5e-07,82149.0,82148.0,0.012173]
[1743684816539,4.5e-07,82149.0,82148.0,0.72936645]
[1743684816746,4.5e-07,82149.0,82148.0,0.72693245]
[1743684817685,4.5e-07,82149.0,82148.0,0.73171924]
[1743684817861,4.5e-07,82149.0,82148.0,0.93259924]
[1743684818467,4.5e-07,82149.0,82148.0,0.91805839]
[1743684820654,4.5e-07,82149.0,82148.0,0.71717839]
[1743684820856,4.5e-07,82149.0,82148.0,0.91677839]
[1743684821102,4.5e-07,82149.0,82148.0,0.5729742]
[1743684821300,4.5e-07,82149.0,82148.0,0.5728142]
[1743684822116,4.5e-07,82149.0,82148.0,0.3733742]
[1743684822312,4.5e-07,82149.0,82148.0,0.5725342]
[1743684822518,4.5e-07,82149.0,82148.0,0.5722942]
[1743684822519,0.01000045,82149.0,82148.0,0.5722942]
[1743684823067,0.01000045,82149.0,82148.0,0.3166582]
[1743684823615,0.01000045,82149.0,82148.0,0.1996226]
[1743684823616,0.02217345,82149.0,82148.0,0.1996226]
[1743684823845,0.02217345,82149.0,82148.0,0.0009826]
[1743684824021,0.02461531,82149.0,82148.0,0.0009826]
[1743684824220,0.012175,82133.0,82129.0,0.10832268]
[1743684824359,0.012175,82133.0,82129.0,0.10846139]
[1743684824360,0.062175,82133.0,82129.0,0.10846139]
[1743684824571,0.255689,82131.0,82129.0,0.10846139]
[1743684824775,0.107075,82130.0,82129.0,0.10846139]
[1743684824977,0.317075,82130.0,82129.0,0.10846139]
[1743684825838,0.21,82130.0,82129.0,0.22521699]
[1743684826213,0.222175,82130.0,82129.0,0.10846139]
[1743684826437,0.27191686,82130.0,82129.0,0.00013871]
[1743684826655,0.269475,82130.0,82129.0,0.00013871]
[1743684826882,0.319375,82130.0,82129.0,0.00013871]
[1743684827131,0.659375,82130.0,82129.0,0.00013871]
[1743684827330,0.659375,82130.0,82099.0,0.01218]
[1743684827331,0.255741,82114.0,82099.0,0.00905749]
[1743684827531,0.255741,82114.0,82108.0,0.1972]
[1743684827532,0.515741,82114.0,82108.0,0.1972]
[1743684828719,0.855741,82114.0,82084.0,0.012182]
[1743684828925,0.855741,82114.0,82078.0,0.10865848]
[1743684828926,0.243658,82083.0,82078.0,0.10865848]
[1743684829102,0.02,82083.0,82082.0,0.3256176]
[1743684829837,0.02,82083.0,82082.0,0.3134356]
[1743684830313,0.02,82083.0,82082.0,0.3131956]
[1743684830564,0.25584,82082.0,82081.0,0.00413874]
[1743684830823,0.33584,82082.0,82081.0,0.00413874]
[1743684831459,0.59585,82079.0,82078.0,0.001328]
[1743684831727,0.255903,82062.0,82061.0,0.10832268]
[1743684831985,0.012184,82069.0,82062.0,0.243715]
[1743684832266,0.08,82069.0,82068.0,0.243697]
[1743684832520,0.08,82069.0,82068.0,0.3726376]
[1743684833022,0.08,82069.0,82068.0,0.1167556]
[1743684833675,0.08,82069.0,82068.0,0.1289406]
[1743684834302,0.08,82069.0,82068.0,0.3261006]
[1743684834697,0.08,82069.0,82068.0,0.3270909]
[1743684835620,0.08,82069.0,82068.0,0.33612195]
[1743684836266,0.0486,82087.0,82084.0,0.012182]
[1743684836503,0.1,82087.0,82084.0,0.1167556]
[1743684837141,0.1,82087.0,82085.0,0.3604046]
[1743684837362,0.1,82087.0,82086.0,0.255828]
[1743684837567,0.1,82087.0,82086.0,0.3725836]
[1743684837780,0.1,82087.0,82086.0,0.1167556]
[1743684837781,0.112182,82087.0,82086.0,0.1167556]
[1743684837994,0.112182,82087.0,82066.0,0.243704]
[1743684837995,0.012184,82074.0,82066.0,0.243704]
[1743684838199,0.012184,82074.0,82051.0,0.004336]
[1743684838200,0.01,82074.0,82072.0,0.243688]
[1743684838405,0.01,82074.0,82073.0,0.3127156]
[1743684838661,0.01,82074.0,82073.0,0.3248996]
[1743684839754,0.01,82074.0,82073.0,0.3258808]
[1743684840644,0.012181,82089.0,82073.0,0.3258808]
[1743684840645,0.0476,82098.0,82092.0,0.243626]
[1743684840853,0.0476,82098.0,82088.0,0.012182]
[1743684840854,0.243621,82095.0,82088.0,0.012182]
[1743684841061,0.243621,82095.0,82074.0,0.243682]
[1743684841062,0.26852458,82110.0,82105.0,0.012179]
[1743684841302,0.23,82110.0,82105.0,0.012179]
[1743684841514,0.23,82110.0,82106.0,0.1167556]
[1743684841515,0.243582,82108.0,82106.0,0.1167556]
[1743684841724,0.243582,82108.0,82102.0,0.1952]
[1743684841725,0.243593,82104.0,82102.0,0.1952]
[1743684841937,0.273593,82104.0,82102.0,0.1952]
[1743684842152,0.012179,82103.0,82102.0,0.1952]
[1743684842327,0.06,82103.0,82102.0,0.1952]
[1743684842527,0.072179,82103.0,82102.0,0.1952]
[1743684843322,0.06,82103.0,82102.0,0.3119556]
[1743684843515,0.315775,82103.0,82102.0,0.1952]
[1743684844780,0.06,82103.0,82102.0,0.1952]
[1743684845193,0.06,82103.0,82102.0,0.3241346]
[1743684845609,0.06,82103.0,82102.0,0.3119556]
[1743684845812,0.06,82103.0,82102.0,0.3241346]
[1743684846426,0.01218,82098.0,82081.0,0.012183]
[1743684846601,0.012181,82093.0,82092.0,0.19372]
[1743684846830,0.24368,82075.0,82063.0,0.012185]
[1743684847044,0.243648,82086.0,82082.0,0.243657]
[1743684847254,0.243595,82104.0,82100.0,0.243603]
[1743684847456,0.243595,82104.0,82094.0,0.449434]
[1743684847457,0.243607,82100.0,82094.0,0.449434]
[1743684847635,0.243614,82097.0,82095.0,0.1167556]
[1743684847892,0.243614,82097.0,82089.0,0.243635]
[1743684847893,0.012182,82086.0,82077.0,0.00013884]
[1743684848105,0.08,82097.0,82077.0,0.00013884]
[1743684848106,0.243628,82093.0,82088.0,0.24364]
[1743684848311,0.06,82093.0,82092.0,0.243629]
[1743684848482,0.06,82093.0,82092.0,0.3725656]
[1743684848830,0.243586,82107.0,82102.0,0.012179]
[1743684849032,0.14,82107.0,82103.0,0.1167556]
[1743684849243,0.14,82107.0,82104.0,0.193]
[1743684849446,0.14,82107.0,82105.0,0.1167556]
[1743684849764,0.14,82107.0,82105.0,0.1177488]
[1743684849985,0.14,82107.0,82106.0,0.255766]
[1743684850195,0.14,82107.0,82106.0,0.3725216]
[1743684850395,0.26852458,82140.0,82129.0,0.255694]
[1743684850723,0.26852458,82140.0,82129.0,0.1167556]
[1743684850724,0.07030684,82130.0,82129.0,0.1167556]
[1743684851051,0.07030684,82130.0,82129.0,0.1289306]
[1743684851258,0.07030684,82130.0,82129.0,0.13136554]
[1743684851478,0.00030684,82130.0,82129.0,0.13136554]
[1743684851694,0.00030684,82130.0,82129.0,0.33510194]
[1743684852181,0.00030684,82130.0,82129.0,0.34964279]
[1743684852387,0.00030684,82130.0,82129.0,0.68964279]
[1743684852809,0.00030684,82130.0,82129.0,0.33510194]
[1743684853156,0.00030684,82130.0,82129.0,0.32264694]
[1743684853464,0.00030684,82130.0,82129.0,0.3259045]
[1743684853858,0.01030684,82130.0,82129.0,0.3137295]
[1743684854059,0.25382284,82130.0,82129.0,0.19204]
[1743684854264,0.26599784,82130.0,82129.0,0.19204]
[1743684854474,0.26599784,82130.0,82103.0,0.00928558]
[1743684854475,0.012178,82113.0,82103.0,0.00928558]
[1743684854600,0.273568,82113.0,82109.0,0.19148]
[1743684854801,0.243572,82112.0,82110.0,0.1177486]
[1743684855189,0.273572,82112.0,82110.0,0.1177486]
[1743684855408,0.03,82112.0,82110.0,0.3613216]
[1743684855593,0.03,82112.0,82110.0,0.1177486]
[1743684856460,0.273571,82112.0,82110.0,0.1177486]
[1743684856833,0.012178,82111.0,82110.0,0.000993]
[1743684856975,0.243575,82110.0,82106.0,0.19084]
[1743684857178,0.243578,82109.0,82107.0,0.1167556]
[1743684857377,0.012181,82093.0,82073.0,0.0003364]
[1743684857581,0.26852458,82092.0,82081.0,0.012183]
[1743684857783,0.05,82092.0,82088.0,0.012182]
[1743684858003,0.05,82092.0,82089.0,0.1167556]
[1743684858236,0.243634,82091.0,82089.0,0.1167556]
[1743684858437,0.05,82091.0,82089.0,0.3071556]
[1743684858639,0.05,82091.0,82089.0,0.5507906]
[1743684858878,0.05,82091.0,82089.0,0.3071556]
[1743684859084,0.05,82091.0,82090.0,0.255816]
[1743684859331,0.05,82091.0,82090.0,0.3603906]
[1743684859482,0.05,82091.0,82090.0,0.3725716]
[1743684859682,0.0473,82114.0,82107.0,0.012179]
[1743684859885,0.0473,82114.0,82108.0,0.1167556]
[1743684859886,0.243576,82110.0,82108.0,0.1167556]
[1743684860093,0.343576,82110.0,82108.0,0.3071556]
[1743684860509,0.1,82110.0,82108.0,0.3071556]
[1743684860715,0.243578,82109.0,82108.0,0.3071556]
[1743684860917,0.05,82109.0,82108.0,0.5507346]
[1743684861091,0.05,82109.0,82108.0,0.5629136]
[1743684861472,0.00013859,82114.0,82113.0,0.255744]
[1743684861871,0.243525,82127.0,82113.0,0.255744]
[1743684861872,0.243525,82127.0,82113.0,0.4693422]
[1743684861997,0.036522,82156.0,82152.0,0.012172]
[1743684862212,0.01617,82169.0,82154.0,0.255617]
[1743684862417,0.01617,82169.0,82155.0,0.5628096]
[1743684862418,0.0101679,82162.0,82155.0,0.5628096]
[1743684862751,0.01063056,82162.0,82156.0,0.243438]
[1743684862957,0.01063056,82162.0,82155.0,0.3193676]
[1743684862958,0.243429,82160.0,82157.0,0.1167556]
[1743684863131,0.03,82160.0,82157.0,0.1167556]
[1743684863330,0.03,82160.0,82158.0,0.1904]
[1743684863878,0.03,82160.0,82158.0,0.446002]
[1743684864094,0.03,82160.0,82159.0,0.1167556]
[1743684864505,0.03,82160.0,82159.0,0.1289266]
[1743684864905,0.03,82160.0,82159.0,0.1299141]
[1743684865343,0.03,82160.0,82159.0,0.1177431]
[1743684865758,0.03,82160.0,82159.0,0.0009875]
[1743684865759,0.042171,82160.0,82159.0,0.0009875]
[1743684865964,0.255617,82154.0,82146.0,0.00890834]
[1743684866167,0.243452,82152.0,82147.0,0.1904]
[1743684866369,0.243455,82151.0,82147.0,0.1904]
[1743684866567,0.05,82151.0,82147.0,0.1904]
[1743684866981,0.05,82151.0,82148.0,0.0049929]
[1743684867185,0.24346,82150.0,82148.0,0.0049929]
[1743684867503,0.00244186,82149.0,82148.0,0.0049929]
[1743684867681,0.255636,82148.0,82134.0,0.012175]
[1743684867885,0.243478,82143.0,82141.0,0.1904]
[1743684868127,1e-06,82169.0,82168.0,0.260573]
[1743684868327,1e-06,82169.0,82168.0,0.4219286]
[1743684868532,0.00013971,82169.0,82168.0,0.6123286]
[1743684870008,0.00013971,82169.0,82168.0,0.6133241]
[1743684870977,0.00013971,82169.0,82168.0,0.5637241]
[1743684871802,0.00013971,82169.0,82168.0,0.5686714]
[1743684872887,0.00013971,82169.0,82168.0,0.3782714]
[1743684873091,0.00013971,82169.0,82168.0,0.5685914]
[1743684873813,0.00013971,82169.0,82168.0,0.3782714]
[1743684874242,0.00013971,82169.0,82168.0,0.5685914]
[1743684875477,0.00013971,82169.0,82168.0,0.1226984]
[1743684875699,0.02230971,82169.0,82168.0,0.0059428]
[1743684875976,0.01013971,82169.0,82168.0,0.0009955]
[1743684876209,0.01258157,82169.0,82168.0,0.0009955]
[1743684876400,0.01013971,82169.0,82168.0,0.0009955]
[1743684878092,0.01013971,82169.0,82168.0,0.13235523]
[1743684878293,0.00013971,82169.0,82168.0,0.13235484]
[1743684878492,0.00013971,82169.0,82168.0,0.1299211]
[1743684878676,0.01013971,82169.0,82168.0,0.1299211]
[1743684880173,0.01013971,82169.0,82168.0,0.1302573]
[1743684880579,0.01030781,82169.0,82168.0,0.1302573]
[1743684881039,0.00030781,82169.0,82168.0,0.1302573]
[1743684881238,0.00030781,82169.0,82168.0,0.13269103]
[1743684881851,0.00030781,82169.0,82168.0,0.13767523]
[1743684883030,8.1e-07,82169.0,82168.0,0.13767523]
[1743684883207,9.1e-07,82174.0,82173.0,0.255557]
[1743684883413,9.1e-07,82174.0,82173.0,0.3723126]
[1743684884064,9.1e-07,82174.0,82173.0,0.5625926]
[1743684884416,9.1e-07,82174.0,82173.0,0.57159838]
[1743684884816,0.00016901,82187.0,82186.0,0.255517]
[1743684885048,0.00016901,82187.0,82186.0,0.3732709]
[1743684885207,0.0001681,82192.0,82191.0,0.255501]
[1743684885409,0.0001681,82192.0,82191.0,0.5625366]
[1743684885604,0.0001681,82192.0,82191.0,0.19028]
[1743684885819,0.0101681,82192.0,82191.0,0.19028]
[1743684886739,0.0101681,82192.0,82188.0,0.19024]
[1743684886950,0.0101681,82192.0,82191.0,0.0049381]
[1743684887151,0.0101681,82192.0,82188.0,0.243343]
[1743684887152,0.2535011,82192.0,82187.0,0.243346]
[1743684887371,0.0101681,82192.0,82187.0,0.243346]
[1743684887775,0.012166,82192.0,82186.0,0.1912383]
[1743684887977,0.255514,82187.0,82186.0,0.0009983]
[1743684888177,0.27,82187.0,82183.0,0.243359]
[1743684888415,0.27,82187.0,82185.0,0.243351]
[1743684888620,0.27,82187.0,82184.0,0.243356]
[1743684889243,0.27,82187.0,82186.0,0.255517]
[1743684889452,0.27,82187.0,82186.0,0.3722726]
[1743684889681,0.0001681,82195.0,82194.0,0.243326]
[1743684889886,0.1903067,82195.0,82194.0,0.243326]
[1743684890087,0.1903067,82195.0,82194.0,0.2443121]
[1743684890422,0.1903067,82195.0,82194.0,0.3732337]
[1743684891194,0.1903067,82195.0,82194.0,0.1177417]
[1743684891556,0.19020587,82195.0,82194.0,0.3732337]
[1743684891955,0.19020587,82195.0,82194.0,0.3781601]
[1743684894212,0.00020587,82195.0,82194.0,0.3781601]
[1743684894675,0.00020587,82195.0,82194.0,0.5683601]
[1743684894926,0.00020587,82195.0,82194.0,0.57731547]
[1743684896338,0.00020587,82195.0,82194.0,0.59185632]
[1743684896548,0.004,82199.0,82194.0,0.59185632]
[1743684896549,9.7e-07,82197.0,82196.0,0.255486]
[1743684896719,9.7e-07,82197.0,82196.0,0.38678245]
[1743684896905,9.7e-07,82199.0,82198.0,0.255479]
[1743684897109,9.7e-07,82199.0,82198.0,0.72677545]
[1743684898216,9.7e-07,82199.0,82198.0,0.7122346]
[1743684898413,9.7e-07,82199.0,82198.0,0.5623946]
[1743684898637,9.7e-07,82199.0,82198.0,0.57693545]
[1743684898968,9.7e-07,82199.0,82198.0,0.3722346]
[1743684899175,9.7e-07,82199.0,82198.0,0.5623946]
[1743684899973,9.7e-07,82199.0,82198.0,0.3722346]
[1743684900177,9.7e-07,82199.0,82198.0,0.57693545]
[1743684900376,9.7e-07,82199.0,82198.0,0.5623946]
[1743684901902,9.7e-07,82199.0,82198.0,0.57693545]
[1743684902225,9.7e-07,82199.0,82198.0,0.58188805]
[1743684903269,9.7e-07,82199.0,82198.0,0.92188805]
[1743684904078,7e-08,82199.0,82198.0,0.92188805]
[1743684904833,7e-08,82199.0,82198.0,0.7171872]
[1743684905034,7e-08,82199.0,82198.0,0.5673072]
[1743684905661,7e-08,82199.0,82198.0,0.58184805]
[1743684906069,7e-08,82199.0,82198.0,0.5673072]
[1743684906474,7e-08,82199.0,82198.0,0.3771872]
[1743684906904,7e-08,82199.0,82198.0,0.5672672]
[1743684907106,7e-08,82199.0,82198.0,0.3771872]
[1743684907312,7e-08,82199.0,82198.0,0.5672672]
[1743684907486,7e-08,82199.0,82198.0,0.3771872]
[1743684907736,7e-08,82199.0,82198.0,0.1217082]
[1743684907942,0.01000007,82199.0,82198.0,0.3068356]
[1743684908145,0.25331107,82199.0,82198.0,0.3068356]
[1743684908350,0.01000007,82199.0,82198.0,0.3068356]
[1743684908559,0.01000007,82199.0,82198.0,0.5623146]
[1743684908813,0.25331107,82199.0,82194.0,0.0009861]
[1743684909023,0.255489,82195.0,82194.0,0.0009861]
[1743684909230,0.231132,82192.0,82191.0,0.0003362]
[1743684909431,0.02,82192.0,82191.0,0.0003362]
[1743684909652,0.275498,82192.0,82191.0,0.0003362]
[1743684910487,0.321998,82192.0,82191.0,0.0003362]
[1743684910675,0.661998,82192.0,82191.0,0.0003362]
[1743684911321,0.91599167,82192.0,82191.0,0.0003362]
[1743684911456,0.92815767,82192.0,82191.0,0.0003362]
[1743684912063,0.92252353,82192.0,82191.0,0.0003362]
[1743684912685,0.93706438,82192.0,82191.0,0.0003362]
[1743684913293,0.92252353,82192.0,82191.0,0.0003362]
[1743684914105,0.93706438,82192.0,82191.0,0.0003362]
[1743684914299,0.595563,82171.0,82170.0,0.0009852]
[1743684914498,0.595563,82171.0,82168.0,0.0004748]
[1743684914499,0.25557,82169.0,82168.0,0.0004748]
[1743684914754,0.50557,82169.0,82168.0,0.0004748]
[1743684915169,0.4934,82169.0,82168.0,0.0004748]
[1743684915836,0.51669777,82169.0,82168.0,0.0004748]
[1743684916333,0.50557,82169.0,82168.0,0.0004748]
[1743684916563,0.84557,82169.0,82168.0,0.0004748]
[1743684917233,0.8334,82169.0,82168.0,0.0004748]
[1743684917468,0.59,82169.0,82168.0,0.0004748]
[1743684917719,0.60217,82169.0,82168.0,0.0004748]
[1743684918953,0.59,82169.0,82168.0,0.0004748]
[1743684919382,0.60217,82169.0,82168.0,0.0004748]
[1743684920016,0.012174,82142.0,82131.0,0.243511]
[1743684920254,0.012173,82148.0,82143.0,0.00046266]
[1743684920471,0.255647,82145.0,82143.0,0.00046266]
[1743684920699,0.01461486,82144.0,82143.0,0.00046266]
[1743684920939,0.06461486,82144.0,82143.0,0.00046266]
[1743684923735,0.40461486,82144.0,82143.0,0.00046266]
[1743684923932,0.75178785,82144.0,82143.0,0.00046266]
[1743684925154,0.70678785,82144.0,82143.0,0.00046266]
[1743684925356,0.692247,82144.0,82143.0,0.00046266]
[1743684927444,0.70678785,82144.0,82143.0,0.00046266]
[1743684927786,0.84854345,82144.0,82143.0,0.00046266]
[1743684927990,0.84854345,82144.0,82141.0,0.004]
[1743684927991,0.625654,82142.0,82141.0,6.6e-07]
[1743684928196,1.04285045,82142.0,82141.0,3.7e-07]
[1743684928628,1.04285045,82142.0,82117.0,0.01]
[1743684928629,0.595728,82118.0,82117.0,0.01]
[1743684928850,0.865728,82118.0,82117.0,0.01]
[1743684929054,1.09362445,82118.0,82117.0,0.01]
[1743684929258,1.11862445,82118.0,82117.0,0.01]
[1743684929636,0.595747,82112.0,82111.0,0.004]
[1743684929837,0.865747,82112.0,82111.0,0.004]
[1743684930038,0.61,82112.0,82111.0,0.004]
[1743684930650,0.27,82112.0,82111.0,0.016178]
[1743684930857,0.27,82112.0,82111.0,0.25975]
[1743684931190,0.27,82112.0,82111.0,0.3765056]
[1743684932050,0.025,82149.0,82111.0,0.3643276]
[1743684932250,1.29177851,82145.0,82144.0,0.012173]
[1743684932365,0.24013851,82145.0,82142.0,0.24348]
[1743684932565,0.24013851,82145.0,82144.0,0.012173]
[1743684932769,0.24013851,82145.0,82142.0,0.243479]
[1743684932969,0.24013851,82145.0,82143.0,0.2606398]
[1743684933173,0.24013851,82145.0,82143.0,0.255649]
[1743684933480,0.243474,82144.0,82137.0,0.19008]
[1743684933714,0.012174,82142.0,82138.0,0.1167556]
[1743684933979,0.255666,82138.0,82137.0,0.19008]
[1743684934186,0.315666,82138.0,82137.0,0.19008]
[1743684934392,0.243543,82123.0,82116.0,0.19008]
[1743684934594,0.255707,82125.0,82124.0,0.0009997]
[1743684934792,0.315707,82125.0,82124.0,0.0009997]
[1743684935168,0.255747,82112.0,82111.0,0.004]
[1743684935381,0.485747,82112.0,82111.0,0.004]
[1743684935692,0.825747,82112.0,82111.0,0.004]
[1743684936209,0.96191445,82112.0,82111.0,0.004]
[1743684937177,1.01944447,82112.0,82111.0,0.004]
[1743684937955,1.03051065,82112.0,82111.0,0.004]
[1743684938160,1.03051065,82112.0,82111.0,1e-06]
[1743684938161,1.06051065,82112.0,82111.0,1e-06]
[1743684938369,1.06051065,82112.0,82108.0,8e-07]
[1743684938370,0.625756,82109.0,82108.0,8e-07]
[1743684938563,1.03705245,82109.0,82108.0,8e-07]
[1743684938775,1.01205245,82109.0,82108.0,8e-07]
[1743684938983,1.03705245,82109.0,82108.0,8e-07]
[1743684939213,0.88682218,82109.0,82108.0,8e-07]
[1743684939411,0.89567579,82109.0,82108.0,8e-07]
[1743684940051,1.08450226,82109.0,82108.0,8e-07]
[1743684941352,1.04909917,82109.0,82108.0,8e-07]
[1743684941575,0.93234357,82109.0,82108.0,8e-07]
[1743684941958,0.91780272,82109.0,82108.0,8e-07]
[1743684942715,0.91780272,82109.0,82060.0,0.0003364]
[1743684942716,0.012182,82082.0,82060.0,0.0003364]
[1743684942890,0.63540685,82074.0,82073.0,0.00013899]
[1743684943093,0.98716245,82074.0,82073.0,9.9e-07]
[1743684943267,0.98216245,82074.0,82073.0,9.9e-07]
[1743684943672,0.85286693,82074.0,82073.0,9.9e-07]
[1743684943857,0.86171845,82074.0,82073.0,9.9e-07]
[1743684944938,0.83959152,82074.0,82073.0,9.9e-07]
[1743684945403,0.83074,82074.0,82073.0,9.9e-07]
[1743684948609,0.84528085,82074.0,82073.0,9.9e-07]
[1743684950651,0.8438768,82074.0,82073.0,9.9e-07]